Workbook

Sheet ホーム
C1: 部位の熱貫流率早見表エクセル版 | M1: 2015-04-01
C3: ■木造軸組工法
C9: ■枠組壁工法（２×４工法）
A14: 使用許諾条件
A15: ①本ソフトウェアを使用したことによる損害、ならびに第３者からのいかなる請求についてもエンデバーハウス株式会社は、一切の責任を負いません。
A17: ※計算方法は、簡略計算法①で計算しています。本ソフトウェアは、予告なく変更する場合があります。

Sheet 天井 野縁上敷込
A1: 部位U値計算シート ＜部位＞ の熱貫流率
B3: 1）簡略計算法①による部位熱貫流率
B4: （ | C4: 天井 野縁上敷込 | D4: ）の実質熱貫流率 Ｗ/（㎡Ｋ）
B5: 仕様番号 | D5: 部 分 名 | F5: 一般部 | G5: 熱橋部 | I5: 天井 | K5: 面積比率
D6: 熱橋面積比 | F6: 1 | I6: 構法 | J6: 断熱方法 | K6: 一般部 | L6: 熱橋部
B7: 1 | D7: 熱伝導率λ Ｗ/(ｍ・Ｋ) | E7: 厚さｄ ｍ | F7: ｄ/λ ㎡・Ｋ/Ｗ | I7: 軸組・枠組壁 | J7: 野縁上に敷き込む場合 | K7: 1
B8: 熱伝達抵抗 Ｒi | D8: － | E8: － | F8: 0.09 | J8: 桁・梁間に断熱する場合 | K8: 0.87 | L8: 0.13
B9: 石膏ボード | D9: =VLOOKUP(B9,DATAｼｰﾄ!$B$31:$C$34,2,FALSE) -> 0.22 | E9: 0.0125 | F9: =IF(D9=0,"",E9/D9) -> 0.05681818182 | G9: =IF(D9=0,"",E9/D9) -> 0.05681818182 | J9: ＊野縁上に断熱材を敷き詰める場合は、全て一般部
B10: パーフェクトバリア１０K | D10: =VLOOKUP(B10,DATAｼｰﾄ!$B$16:$C$30,2,FALSE) -> 0.045 | E10: 0.2 | F10: =IF(D10=0,"",E10/D10) -> 4.444444444 | G10: =IF(D10=0,"",E10/D10) -> 4.444444444
D11: 0 | E11: 0 | F11: =IF(D11=0,"",E11/D11) ->  | G11: =IF(D11=0,"",E11/D11) ->  | I11: 天井の 熱伝達抵抗Ri（室内側）：0.09
D12: 0 | E12: 0 | F12: =IF(D12=0,"",E12/D12) ->  | G12: =IF(D12=0,"",E12/D12) ->  | I12: 天井の 熱伝達抵抗Ro（室外側）：0.09
D13: 0 | E13: 0 | F13: =IF(D13=0,"",E13/D13) ->  | G13: =IF(D13=0,"",E13/D13) -> 
B14: 熱伝達抵抗 Ｒo | D14: － | E14: － | F14: 0.09
B15: 熱貫流抵抗 ΣＲ＝Σ（ｄｉ/λｉ） | F15: =SUM(F8:F14) -> 4.681262626 | G15: =SUM(G8:G14) -> 4.501262626
B16: 熱貫流率 Ｕｎ＝１/ΣＲ | F16: =IF(F15=0,"",1/F15) -> 0.2136175814 | G16: =IF(G15=0,"",1/G15) -> 0.2221598878
B17: 平均熱貫流率 Ｕi＝Σ（ａin・Ｕｎ） | F17: =IF(F15=0,"",(F6*F16)+(G6*G16)) -> 0.2136175814
C19: 層構成に応じ、計算値を使用するか「0」を入力してください。

Sheet 屋根 垂木間充填
A1: 部位U値計算シート ＜部位＞ の熱貫流率
B3: 1）簡略計算法①による部位熱貫流率
B4: （ | C4: 屋根 垂木間充填 | D4: ）の実質熱貫流率 Ｗ/（㎡Ｋ）
B5: 仕様番号 | D5: 部 分 名 | F5: 一般部 | G5: 熱橋部 | I5: 屋根 | K5: 面積比率
D6: 熱橋面積比 | F6: 0.86 | G6: 0.14 | I6: 構法 | J6: 断熱方法 | K6: 一般部 | L6: 熱橋部
B7: 2 | D7: 熱伝導率λ Ｗ/(ｍ・Ｋ) | E7: 厚さｄ ｍ | F7: ｄ/λ ㎡・Ｋ/Ｗ | I7: 軸組・枠組壁 | J7: たる木間に断熱する場合 | K7: 0.86 | L7: 0.14
B8: 熱伝達抵抗 Ｒi | D8: － | E8: － | F8: 0.09 | G8: 0.09 | I8: ※1 | J8: 野縁上に敷き込む場合 | K8: 1
B9: 石膏ボード | D9: =VLOOKUP(B9,DATAｼｰﾄ!$B$31:$C$34,2,FALSE) -> 0.22 | E9: 0.0125 | F9: =IF(D9=0,"",E9/D9) -> 0.05681818182 | G9: =IF(D9=0,"",E9/D9) -> 0.05681818182 | J9: （※1 母屋下で断熱した場合）
B10: パーフェクトバリア１３K | D10: =VLOOKUP(B10,DATAｼｰﾄ!$B$16:$C$30,2,FALSE) -> 0.039 | E10: 0.1 | F10: =IF(D10=0,"",E10/D10) -> 2.564102564 | I10: 屋根の 熱伝達抵抗Ri（室内側）：0.09
B11: 天然木材1種(桧･杉･えぞ松･とど松等) | D11: =VLOOKUP(B11,DATAｼｰﾄ!$B$35:$C$37,2,FALSE) -> 0.12 | E11: 0.1 | G11: =IF(D11=0,"",E11/D11) -> 0.8333333333 | I11: 屋根の 熱伝達抵抗Ro（室外側）：0.09
D12: 0 | E12: 0 | F12: =IF(D12=0,"",E12/D12) ->  | G12: =IF(D12=0,"",E12/D12) -> 
D13: 0 | E13: 0 | F13: =IF(D13=0,"",E13/D13) ->  | G13: =IF(D13=0,"",E13/D13) -> 
B14: 熱伝達抵抗 Ｒo | D14: － | E14: － | F14: 0.09 | G14: 0.09
B15: 熱貫流抵抗 ΣＲ＝Σ（ｄｉ/λｉ） | F15: =SUM(F8:F14) -> 2.800920746 | G15: =SUM(G8:G14) -> 1.070151515
B16: 熱貫流率 Ｕｎ＝１/ΣＲ | F16: =IF(F15=0,"",1/F15) -> 0.3570254537 | G16: =IF(G15=0,"",1/G15) -> 0.9344471188
B17: 平均熱貫流率 Ｕi＝Σ（ａin・Ｕｎ） | F17: =IF(F15=0,"",(F6*F16)+(G6*G16)) -> 0.4378644868
C19: 層構成に応じ、計算値を使用するか「0」を入力してください。

Sheet 壁 軸組 充填
A1: 部位U値計算シート ＜部位＞ の熱貫流率
B3: 1）簡略計算法①による部位熱貫流率
B4: （ | C4: 軸組 充填 | D4: ）の実質熱貫流率 Ｗ/（㎡Ｋ）
B5: 仕様番号 | D5: 部 分 名 | F5: 一般部 | G5: 熱橋部 | I5: 壁 | K5: 面積比率
D6: 熱橋面積比 | F6: 0.83 | G6: 0.17 | I6: 構法 ： 断熱方法 | K6: 一般部 | L6: 熱橋部
B7: 3 | D7: 熱伝導率λ Ｗ/(ｍ・Ｋ) | E7: 厚さｄ ｍ | F7: ｄ/λ ㎡・Ｋ/Ｗ | J7: 軸組：柱・間柱間に充填する場合 | K7: 0.83 | L7: 0.17
B8: 熱伝達抵抗 Ｒi | D8: － | E8: － | F8: 0.11 | G8: 0.11 | J8: 枠組壁：たて枠間に充填する場合 | K8: 0.77 | L8: 0.23
B9: 石膏ボード | D9: =VLOOKUP(B9,DATAｼｰﾄ!$B$31:$C$34,2,FALSE) -> 0.22 | E9: 0.0125 | F9: =IF(D9=0,"",E9/D9) -> 0.05681818182 | G9: =IF(D9=0,"",E9/D9) -> 0.05681818182
B10: パーフェクトバリア１０K | D10: =VLOOKUP(B10,DATAｼｰﾄ!$B$16:$C$30,2,FALSE) -> 0.045 | E10: 0.1 | F10: =IF(D10=0,"",E10/D10) -> 2.222222222
B11: 天然木材1種(桧･杉･えぞ松･とど松等) | D11: =VLOOKUP(B11,DATAｼｰﾄ!$B$35:$C$37,2,FALSE) -> 0.12 | E11: 0.1 | G11: =IF(D11=0,"",E11/D11) -> 0.8333333333 | I11: 壁の 熱伝達抵抗Ri（室内側）：0.11
B12: ダイライト | D12: =VLOOKUP(B12,DATAｼｰﾄ!$B$38:$C$41,2,FALSE) -> 0.13 | E12: 0.012 | F12: =IF(D12=0,"",E12/D12) -> 0.09230769231 | G12: =IF(D12=0,"",E12/D12) -> 0.09230769231 | I12: 壁の 熱伝達抵抗Ro（室外側）：0.11
D13: 0 | E13: 0 | F13: =IF(D13=0,"",E13/D13) ->  | G13: =IF(D13=0,"",E13/D13) -> 
B14: 熱伝達抵抗 Ｒo | D14: － | E14: － | F14: 0.11 | G14: 0.11
B15: 熱貫流抵抗 ΣＲ＝Σ（ｄｉ/λｉ） | F15: =SUM(F8:F14) -> 2.591348096 | G15: =SUM(G8:G14) -> 1.202459207
B16: 熱貫流率 Ｕｎ＝１/ΣＲ | F16: =IF(F15=0,"",1/F15) -> 0.3858995252 | G16: =IF(G15=0,"",1/G15) -> 0.831629043
B17: 平均熱貫流率 Ｕi＝Σ（ａin・Ｕｎ） | F17: =IF(F15=0,"",(F6*F16)+(G6*G16)) -> 0.4616735432
C19: 層構成に応じ、計算値を使用するか「0」を入力してください。

Sheet 壁 枠組 充填
A1: 部位U値計算シート ＜部位＞ の熱貫流率
B3: 1）簡略計算法①による部位熱貫流率
B4: （ | C4: 枠組 充填 | D4: ）の実質熱貫流率 Ｗ/（㎡Ｋ）
B5: 仕様番号 | D5: 部 分 名 | F5: 一般部 | G5: 熱橋部 | I5: 壁 | K5: 面積比率
D6: 熱橋面積比 | F6: 0.77 | G6: 0.23 | I6: 構法 ： 断熱方法 | K6: 一般部 | L6: 熱橋部
B7: 4 | D7: 熱伝導率λ Ｗ/(ｍ・Ｋ) | E7: 厚さｄ ｍ | F7: ｄ/λ ㎡・Ｋ/Ｗ | J7: 軸組：柱・間柱間に充填する場合 | K7: 0.83 | L7: 0.17
B8: 熱伝達抵抗 Ｒi | D8: － | E8: － | F8: 0.11 | G8: 0.11 | J8: 枠組壁：たて枠間に充填する場合 | K8: 0.77 | L8: 0.23
B9: 石膏ボード | D9: =VLOOKUP(B9,DATAｼｰﾄ!$B$31:$C$34,2,FALSE) -> 0.22 | E9: 0.0125 | F9: =IF(D9=0,"",E9/D9) -> 0.05681818182 | G9: =IF(D9=0,"",E9/D9) -> 0.05681818182
B10: パーフェクトバリア１３K | D10: =VLOOKUP(B10,DATAｼｰﾄ!$B$16:$C$30,2,FALSE) -> 0.039 | E10: 0.089 | F10: =IF(D10=0,"",E10/D10) -> 2.282051282
B11: 天然木材1種(桧･杉･えぞ松･とど松等) | D11: =VLOOKUP(B11,DATAｼｰﾄ!$B$35:$C$37,2,FALSE) -> 0.12 | E11: 0.089 | G11: =IF(D11=0,"",E11/D11) -> 0.7416666667 | I11: 壁の 熱伝達抵抗Ri（室内側）：0.11
B12: 合板 | D12: =VLOOKUP(B12,DATAｼｰﾄ!$B$38:$C$41,2,FALSE) -> 0.16 | E12: 0.009 | F12: =IF(D12=0,"",E12/D12) -> 0.05625 | G12: =IF(D12=0,"",E12/D12) -> 0.05625 | I12: 壁の 熱伝達抵抗Ro（室外側）：0.11
D13: 0 | E13: 0 | F13: =IF(D13=0,"",E13/D13) ->  | G13: =IF(D13=0,"",E13/D13) -> 
B14: 熱伝達抵抗 Ｒo | D14: － | E14: － | F14: 0.11 | G14: 0.11
B15: 熱貫流抵抗 ΣＲ＝Σ（ｄｉ/λｉ） | F15: =SUM(F8:F14) -> 2.615119464 | G15: =SUM(G8:G14) -> 1.074734848
B16: 熱貫流率 Ｕｎ＝１/ΣＲ | F16: =IF(F15=0,"",1/F15) -> 0.3823917086 | G16: =IF(G15=0,"",1/G15) -> 0.930462059
B17: 平均熱貫流率 Ｕi＝Σ（ａin・Ｕｎ） | F17: =IF(F15=0,"",(F6*F16)+(G6*G16)) -> 0.5084478892
C19: 層構成に応じ、計算値を使用するか「0」を入力してください。

Sheet その他床 剛床工法
A1: 部位U値計算シート ＜部位＞ の熱貫流率
B3: 1）簡略計算法①による部位熱貫流率
B4: （ | C4: その他床 剛床工法 | D4: ）の実質熱貫流率 Ｗ/（㎡Ｋ）
B5: 仕様番号 | D5: 部 分 名 | F5: 一般部 | G5: 熱橋部 | I5: その他床 | K5: 面積比率
D6: 熱橋面積比 | F6: 0.85 | G6: 0.15 | I6: 構法 ・ 断熱方法 | K6: 一般部 | L6: 熱橋部
B7: 5 | D7: 熱伝導率λ Ｗ/(ｍ・Ｋ) | E7: 厚さｄ ｍ | F7: ｄ/λ ㎡・Ｋ/Ｗ | J7: 軸組･枠組：大引間に充填(剛床工法) | K7: 0.85 | L7: 0.15
B8: 熱伝達抵抗 Ｒi | D8: － | E8: － | F8: 0.15 | G8: 0.15 | J8: 軸組：根太間に断熱する場合 | K8: 0.8 | L8: 0.2
B9: 合板ﾌﾛｱ | D9: =VLOOKUP(B9,DATAｼｰﾄ!$B$31:$C$34,2,FALSE) -> 0.16 | E9: 0.012 | F9: =IF(D9=0,"",E9/D9) -> 0.075 | G9: =IF(D9=0,"",E9/D9) -> 0.075 | J9: 軸組：床梁土台同面工法で根太間断熱 | K9: 0.7 | L9: 0.3
B10: 合板 | D10: =VLOOKUP(B10,DATAｼｰﾄ!$B$31:$C$34,2,FALSE) -> 0.16 | E10: 0.024 | F10: =IF(D10=0,"",E10/D10) -> 0.15 | G10: =IF(D10=0,"",E10/D10) -> 0.15 | J10: 枠組壁：根太間に断熱 | K10: 0.87 | L10: 0.13
B11: パーフェクトバリア２０K（ネダレスボード） | D11: =VLOOKUP(B11,DATAｼｰﾄ!$B$16:$C$30,2,FALSE) -> 0.038 | E11: 0.09 | F11: =IF(D11=0,"",E11/D11) -> 2.368421053
B12: 天然木材1種(桧･杉･えぞ松･とど松等) | D12: =VLOOKUP(B12,DATAｼｰﾄ!$B$35:$C$37,2,FALSE) -> 0.12 | E12: 0.09 | G12: 0.75 | I12: 床の 熱伝達抵抗Ri（室内側）：0.15
D13: 0 | E13: 0 | F13: =IF(D13=0,"",E13/D13) ->  | I13: 床の 熱伝達抵抗Ro（室外側）：0.15
B14: 熱伝達抵抗 Ｒo | D14: － | E14: － | F14: 0.15 | G14: 0.15
B15: 熱貫流抵抗 ΣＲ＝Σ（ｄｉ/λｉ） | F15: =SUM(F8:F14) -> 2.893421053 | G15: =SUM(G8:G14) -> 1.275
B16: 熱貫流率 Ｕｎ＝１/ΣＲ | F16: =IF(F15=0,"",1/F15) -> 0.3456116417 | G16: =IF(G15=0,"",1/G15) -> 0.7843137255
B17: 平均熱貫流率 Ｕi＝Σ（ａin・Ｕｎ） | F17: =IF(F15=0,"",(F6*F16)+(G6*G16)) -> 0.4114169542
C19: 層構成に応じ、計算値を使用するか「0」を入力してください。

Sheet その他床 根太間
A1: 部位U値計算シート ＜部位＞ の熱貫流率
B3: 1）簡略計算法①による部位熱貫流率
B4: （ | C4: その他床 根太工法 | D4: ）の実質熱貫流率 Ｗ/（㎡Ｋ）
B5: 仕様番号 | D5: 部 分 名 | F5: 一般部 | G5: 熱橋部 | I5: その他床 | K5: 面積比率
D6: 熱橋面積比 | F6: 0.8 | G6: 0.2 | I6: 構法 ・ 断熱方法 | K6: 一般部 | L6: 熱橋部
B7: 6 | D7: 熱伝導率λ Ｗ/(ｍ・Ｋ) | E7: 厚さｄ ｍ | F7: ｄ/λ ㎡・Ｋ/Ｗ | J7: 軸組･枠組：大引間に充填(剛床工法) | K7: 0.85 | L7: 0.15
B8: 熱伝達抵抗 Ｒi | D8: － | E8: － | F8: 0.15 | G8: 0.15 | J8: 軸組：根太間に断熱する場合 | K8: 0.8 | L8: 0.2
B9: 合板ﾌﾛｱ | D9: =VLOOKUP(B9,DATAｼｰﾄ!$B$31:$C$34,2,FALSE) -> 0.16 | E9: 0.012 | F9: =IF(D9=0,"",E9/D9) -> 0.075 | G9: =IF(D9=0,"",E9/D9) -> 0.075 | J9: 軸組：床梁土台同面工法で根太間断熱 | K9: 0.7 | L9: 0.3
B10: 合板 | D10: =VLOOKUP(B10,DATAｼｰﾄ!$B$31:$C$34,2,FALSE) -> 0.16 | E10: 0.015 | F10: =IF(D10=0,"",E10/D10) -> 0.09375 | G10: =IF(D10=0,"",E10/D10) -> 0.09375 | J10: 枠組壁：根太間に断熱 | K10: 0.87 | L10: 0.13
B11: パーフェクトバリア３０K | D11: =VLOOKUP(B11,DATAｼｰﾄ!$B$16:$C$30,2,FALSE) -> 0.035 | E11: 0.08 | F11: =IF(D11=0,"",E11/D11) -> 2.285714286
B12: 天然木材1種(桧･杉･えぞ松･とど松等) | D12: =VLOOKUP(B12,DATAｼｰﾄ!$B$35:$C$37,2,FALSE) -> 0.12 | E12: 0.08 | G12: 0.6666666667 | I12: 床の 熱伝達抵抗Ri（室内側）：0.15
D13: 0 | E13: 0 | F13: =IF(D13=0,"",E13/D13) ->  | I13: 床の 熱伝達抵抗Ro（室外側）：0.15
B14: 熱伝達抵抗 Ｒo | D14: － | E14: － | F14: 0.15 | G14: 0.15
B15: 熱貫流抵抗 ΣＲ＝Σ（ｄｉ/λｉ） | F15: =SUM(F8:F14) -> 2.754464286 | G15: =SUM(G8:G14) -> 1.135416667
B16: 熱貫流率 Ｕｎ＝１/ΣＲ | F16: =IF(F15=0,"",1/F15) -> 0.3630470016 | G16: =IF(G15=0,"",1/G15) -> 0.880733945
B17: 平均熱貫流率 Ｕi＝Σ（ａin・Ｕｎ） | F17: =IF(F15=0,"",(F6*F16)+(G6*G16)) -> 0.4665843903
C19: 層構成に応じ、計算値を使用するか「0」を入力してください。

Sheet 外気に接する床 剛床工法
A1: 部位U値計算シート ＜部位＞ の熱貫流率
B3: 1）簡略計算法①による部位熱貫流率
B4: （ | C4: 外気床 剛床工法 | D4: ）の実質熱貫流率 Ｗ/（㎡Ｋ）
B5: 仕様番号 | D5: 部 分 名 | F5: 一般部 | G5: 熱橋部 | I5: その他床 | K5: 面積比率
D6: 熱橋面積比 | F6: 0.85 | G6: 0.15 | I6: 構法 ・ 断熱方法 | K6: 一般部 | L6: 熱橋部
B7: 7 | D7: 熱伝導率λ Ｗ/(ｍ・Ｋ) | E7: 厚さｄ ｍ | F7: ｄ/λ ㎡・Ｋ/Ｗ | J7: 軸組･枠組：大引間に充填(剛床工法) | K7: 0.85 | L7: 0.15
B8: 熱伝達抵抗 Ｒi | D8: － | E8: － | F8: 0.15 | G8: 0.15 | J8: 軸組：根太間に断熱する場合 | K8: 0.8 | L8: 0.2
B9: 合板ﾌﾛｱ | D9: =VLOOKUP(B9,DATAｼｰﾄ!$B$31:$C$34,2,FALSE) -> 0.16 | E9: 0.012 | F9: =IF(D9=0,"",E9/D9) -> 0.075 | G9: =IF(D9=0,"",E9/D9) -> 0.075 | J9: 軸組：床梁土台同面工法で根太間断熱 | K9: 0.7 | L9: 0.3
B10: 合板 | D10: =VLOOKUP(B10,DATAｼｰﾄ!$B$31:$C$34,2,FALSE) -> 0.16 | E10: 0.024 | F10: =IF(D10=0,"",E10/D10) -> 0.15 | G10: =IF(D10=0,"",E10/D10) -> 0.15 | J10: 枠組壁：根太間に断熱 | K10: 0.87 | L10: 0.13
B11: パーフェクトバリア１０K | D11: =VLOOKUP(B11,DATAｼｰﾄ!$B$16:$C$30,2,FALSE) -> 0.045 | E11: 0.15 | F11: =IF(D11=0,"",E11/D11) -> 3.333333333
B12: 天然木材1種(桧･杉･えぞ松･とど松等) | D12: =VLOOKUP(B12,DATAｼｰﾄ!$B$35:$C$37,2,FALSE) -> 0.12 | E12: 0.15 | G12: 1.25 | I12: 外気床の 熱伝達抵抗Ri（室内側）：0.15
D13: 0 | E13: 0 | F13: =IF(D13=0,"",E13/D13) ->  | I13: 外気床の 熱伝達抵抗Ro（室外側）：0.04
B14: 熱伝達抵抗 Ｒo | D14: － | E14: － | F14: 0.04 | G14: 0.04
B15: 熱貫流抵抗 ΣＲ＝Σ（ｄｉ/λｉ） | F15: =SUM(F8:F14) -> 3.748333333 | G15: =SUM(G8:G14) -> 1.665
B16: 熱貫流率 Ｕｎ＝１/ΣＲ | F16: =IF(F15=0,"",1/F15) -> 0.2667852379 | G16: =IF(G15=0,"",1/G15) -> 0.6006006006
B17: 平均熱貫流率 Ｕi＝Σ（ａin・Ｕｎ） | F17: =IF(F15=0,"",(F6*F16)+(G6*G16)) -> 0.3168575423
C19: 層構成に応じ、計算値を使用するか「0」を入力してください。

Sheet その他床 枠組根太工法
A1: 部位U値計算シート ＜部位＞ の熱貫流率
B3: 1）簡略計算法①による部位熱貫流率
B4: （ | C4: その他床 根太工法 | D4: ）の実質熱貫流率 Ｗ/（㎡Ｋ）
B5: 仕様番号 | D5: 部 分 名 | F5: 一般部 | G5: 熱橋部 | I5: その他床 | K5: 面積比率
D6: 熱橋面積比 | F6: 0.87 | G6: 0.13 | I6: 構法 ・ 断熱方法 | K6: 一般部 | L6: 熱橋部
B7: 8 | D7: 熱伝導率λ Ｗ/(ｍ・Ｋ) | E7: 厚さｄ ｍ | F7: ｄ/λ ㎡・Ｋ/Ｗ | J7: 軸組･枠組：大引間に充填(剛床工法) | K7: 0.85 | L7: 0.15
B8: 熱伝達抵抗 Ｒi | D8: － | E8: － | F8: 0.15 | G8: 0.15 | J8: 軸組：根太間に断熱する場合 | K8: 0.8 | L8: 0.2
B9: 合板ﾌﾛｱ | D9: =VLOOKUP(B9,DATAｼｰﾄ!$B$31:$C$34,2,FALSE) -> 0.16 | E9: 0.012 | F9: =IF(D9=0,"",E9/D9) -> 0.075 | G9: =IF(D9=0,"",E9/D9) -> 0.075 | J9: 軸組：床梁土台同面工法で根太間断熱 | K9: 0.7 | L9: 0.3
B10: 合板 | D10: =VLOOKUP(B10,DATAｼｰﾄ!$B$31:$C$34,2,FALSE) -> 0.16 | E10: 0.015 | F10: =IF(D10=0,"",E10/D10) -> 0.09375 | G10: =IF(D10=0,"",E10/D10) -> 0.09375 | J10: 枠組壁：根太間に断熱 | K10: 0.87 | L10: 0.13
B11: パーフェクトバリア３０K | D11: =VLOOKUP(B11,DATAｼｰﾄ!$B$16:$C$30,2,FALSE) -> 0.035 | E11: 0.08 | F11: =IF(D11=0,"",E11/D11) -> 2.285714286
B12: 天然木材1種(桧･杉･えぞ松･とど松等) | D12: =VLOOKUP(B12,DATAｼｰﾄ!$B$35:$C$37,2,FALSE) -> 0.12 | E12: 0.08 | G12: 0.6666666667 | I12: 床の 熱伝達抵抗Ri（室内側）：0.15
D13: 0 | E13: 0 | F13: =IF(D13=0,"",E13/D13) ->  | I13: 床の 熱伝達抵抗Ro（室外側）：0.15
B14: 熱伝達抵抗 Ｒo | D14: － | E14: － | F14: 0.15 | G14: 0.15
B15: 熱貫流抵抗 ΣＲ＝Σ（ｄｉ/λｉ） | F15: =SUM(F8:F14) -> 2.754464286 | G15: =SUM(G8:G14) -> 1.135416667
B16: 熱貫流率 Ｕｎ＝１/ΣＲ | F16: =IF(F15=0,"",1/F15) -> 0.3630470016 | G16: =IF(G15=0,"",1/G15) -> 0.880733945
B17: 平均熱貫流率 Ｕi＝Σ（ａin・Ｕｎ） | F17: =IF(F15=0,"",(F6*F16)+(G6*G16)) -> 0.4303463043
C19: 層構成に応じ、計算値を使用するか「0」を入力してください。

Sheet DATAｼｰﾄ
A1: この数値は他のシートに連動していますので、列、行を削除しないでください。
A2: 外皮性能基準値
C3: ＵA | D3: ηA
B4: １（Ⅰa） | C4: 0.46 | D4: -
B5: ２（Ⅰb） | C5: 0.46 | D5: -
B6: ３（Ⅱ） | C6: 0.56 | D6: -
B7: ４（Ⅲ） | C7: 0.75 | D7: -
B8: ５（Ⅳa） | C8: 0.87 | D8: 3
B9: ６（Ⅳb） | C9: 0.87 | D9: 2.8
B10: ７（Ⅴ） | C10: 0.87 | D10: 2.7
B11: ８（Ⅵ） | C11: - | D11: 3.2
A14: 熱伝導率表
B15: 材料 | C15: λ
A16: 断熱材 | D16: ←空欄
B17: パーフェクトバリア１０K | C17: 0.045
B18: パーフェクトバリア１３K | C18: 0.039
B19: パーフェクトバリア２０K（ネダレスボード） | C19: 0.038
B20: パーフェクトバリア３０K | C20: 0.035
A31: 内装・内装下地 | B31: 無し | C31: 0
B32: 石膏ボード | C32: 0.22
B33: 合板 | C33: 0.16
B34: 合板ﾌﾛｱ | C34: 0.16
A35: 木 | B35: 天然木材1種(桧･杉･えぞ松･とど松等) | C35: 0.12
B36: 天然木材2種(松･ﾗﾜﾝ等) | C36: 0.15
B37: 天然木材3種(ﾅﾗ･ｻｸﾗ･ﾌﾞﾅ等) | C37: 0.19
A38: 外合板 | B38: パーティクルボード | C38: 0.15
B39: ダイライト | C39: 0.13
B40: 合板 | C40: 0.16
B41: ノボパン | C41: 0.15
A42: 躯体 | B42: コンクリート | C42: 1.6
